[Event "Titled Tuesday Blitz August 15 Late 2023"]
[White "Zhigalko, Sergei"]
[Black "Hansen, Torbjorn Ringdal"]
[WhiteFideId "13502956"]
[BlackFideId "1501720"]
[WhiteElo "2933"]
[BlackElo "2660"]
[Result "1-0"]
[Round "5"]
[TimeControl "180+1"]
[Date "2023.08.15"]
[WhiteClock "0:00:04"]
[BlackClock "0:00:00"]
[Board "23"]

1. e4 {[%clk 0:03:00]}  e5 {[%clk 0:02:59]} 2. Nf3 {[%clk 0:03:01]}  Nc6 {[%clk 0:02:59]} 3. Bc4 {[%clk 0:03:01]}  Nf6 {[%clk 0:02:58]} 4. d3 {[%clk 0:03:02]}  h6 {[%clk 0:02:56]} 5. O-O {[%clk 0:03:01]}  d6 {[%clk 0:02:55]} 6. c3 {[%clk 0:03:01]}  g5 {[%clk 0:02:55]} 7. Re1 {[%clk 0:02:57]}  Ne7 {[%clk 0:02:52]} 8. Qb3 {[%clk 0:02:45]}  Rh7 {[%clk 0:02:52]} 9. d4 {[%clk 0:02:40]}  Ng6 {[%clk 0:02:48]} 10. Be3 {[%clk 0:02:23]}  g4 {[%clk 0:02:44]} 11. Nfd2 {[%clk 0:02:22]}  c6 {[%clk 0:02:37]} 12. a4 {[%clk 0:02:19]}  Qc7 {[%clk 0:02:33]} 13. Na3 {[%clk 0:02:17]}  Be7 {[%clk 0:02:31]} 14. Rad1 {[%clk 0:02:06]}  h5 {[%clk 0:02:28]} 15. Bg5 {[%clk 0:01:39]}  h4 {[%clk 0:02:18]} 16. Nf1 {[%clk 0:01:35]}  Kf8 {[%clk 0:02:02]} 17. Qc2 {[%clk 0:01:26]}  Rh5 {[%clk 0:02:00]} 18. Qc1 {[%clk 0:01:16]}  d5 {[%clk 0:01:26]} 19. exd5 {[%clk 0:01:08]}  cxd5 {[%clk 0:01:25]} 20. dxe5 {[%clk 0:00:52]}  dxc4 {[%clk 0:01:19]} 21. Nb5 {[%clk 0:00:25]}  Qc5 {[%clk 0:01:12]} 22. exf6 {[%clk 0:00:22]}  Rxg5 {[%clk 0:00:49]} 23. fxe7+ {[%clk 0:00:21]}  Nxe7 {[%clk 0:00:50]} 24. Rd8+ {[%clk 0:00:20]}  Kg7 {[%clk 0:00:49]} 25. Nd4 {[%clk 0:00:05]}  b6 {[%clk 0:00:43]} 26. b4 {[%clk 0:00:04]}  cxb3 {[%clk 0:00:28]} 27. Nxb3 {[%clk 0:00:05]}  Qf5 {[%clk 0:00:18]} 28. Rxe7 {[%clk 0:00:05]}  Bb7 {[%clk 0:00:15]} 29. Nd4 {[%clk 0:00:05]}  Qf6 {[%clk 0:00:00]} 30. Rdd7 {[%clk 0:00:04]} 1-0


[Site "https://www.chess.com"]

[Event "Titled Tuesday Blitz August 15 Late 2023"]
[White "Altman, Joshua"]
[Black "Ibarra Jerez, Jose Carlos"]
[WhiteFideId "426210"]
[BlackFideId "2226332"]
[WhiteElo "2610"]
[BlackElo "2883"]
[Result "0-1"]
[Round "5"]
[TimeControl "180+1"]
[Date "2023.08.15"]
[WhiteClock "0:02:40"]
[BlackClock "0:01:59"]
[Board "27"]

1. d4 {[%clk 0:03:00]}  Nf6 {[%clk 0:02:59]} 2. c4 {[%clk 0:03:00]}  d6 {[%clk 0:02:59]} 3. Nf3 {[%clk 0:03:00]}  g6 {[%clk 0:02:59]} 4. Nc3 {[%clk 0:03:01]}  Bf5 {[%clk 0:02:59]} 5. Bg5 {[%clk 0:03:01]}  Ne4 {[%clk 0:02:59]} 6. Nxe4 {[%clk 0:03:00]}  Bxe4 {[%clk 0:03:00]} 7. e3 {[%clk 0:03:00]}  c6 {[%clk 0:02:59]} 8. Bd3 {[%clk 0:03:00]}  Bxf3 {[%clk 0:02:37]} 9. gxf3 {[%clk 0:02:53]}  Qa5+ {[%clk 0:02:33]} 10. Qd2 {[%clk 0:02:52]}  Qxg5 {[%clk 0:02:32]} 11. O-O-O {[%clk 0:02:52]}  Qf6 {[%clk 0:02:24]} 12. h4 {[%clk 0:02:53]}  Bg7 {[%clk 0:02:19]} 13. h5 {[%clk 0:02:53]}  O-O {[%clk 0:02:09]} 14. hxg6 {[%clk 0:02:51]}  hxg6 {[%clk 0:02:10]} 15. f4 {[%clk 0:02:52]}  c5 {[%clk 0:02:09]} 16. d5 {[%clk 0:02:46]}  b5 {[%clk 0:02:06]} 17. Rh3 {[%clk 0:02:45]}  bxc4 {[%clk 0:02:04]} 18. Bxc4 {[%clk 0:02:46]}  Nd7 {[%clk 0:02:03]} 19. Rdh1 {[%clk 0:02:46]}  Nb6 {[%clk 0:02:01]} 20. Bb3 {[%clk 0:02:40]}  c4 {[%clk 0:01:59]} 0-1


[Site "https://www.chess.com"]

[Event "Titled Tuesday Blitz August 15 Late 2023"]
[White "Lysyj, Igor"]
[Black "Manukyan, Sargis A."]
[WhiteFideId "4150120"]
[BlackFideId "13303970"]
[WhiteElo "2867"]
[BlackElo "2593"]
[Result "1-0"]
[Round "5"]
[TimeControl "180+1"]
[Date "2023.08.15"]
[WhiteClock "0:00:08"]
[BlackClock "0:00:26"]
[Board "29"]

1. d4 {[%clk 0:03:00]}  d5 {[%clk 0:03:00]} 2. c4 {[%clk 0:02:59]}  e6 {[%clk 0:03:00]} 3. Nf3 {[%clk 0:02:59]}  Nf6 {[%clk 0:03:01]} 4. g3 {[%clk 0:02:58]}  Be7 {[%clk 0:03:02]} 5. Bg2 {[%clk 0:02:58]}  O-O {[%clk 0:03:03]} 6. O-O {[%clk 0:02:58]}  dxc4 {[%clk 0:03:03]} 7. Na3 {[%clk 0:02:58]}  c5 {[%clk 0:03:02]} 8. dxc5 {[%clk 0:02:54]}  Bxc5 {[%clk 0:02:54]} 9. Nxc4 {[%clk 0:02:50]}  b5 {[%clk 0:02:53]} 10. Be3 {[%clk 0:02:14]}  Bxe3 {[%clk 0:02:48]} 11. Nxe3 {[%clk 0:02:13]}  Bb7 {[%clk 0:02:47]} 12. Qxd8 {[%clk 0:02:10]}  Rxd8 {[%clk 0:02:47]} 13. Ne5 {[%clk 0:02:10]}  Bxg2 {[%clk 0:02:46]} 14. Kxg2 {[%clk 0:02:10]}  Nfd7 {[%clk 0:02:25]} 15. Rfd1 {[%clk 0:02:02]}  f6 {[%clk 0:02:25]} 16. Nd3 {[%clk 0:01:46]}  Na6 {[%clk 0:02:18]} 17. Nf4 {[%clk 0:01:41]}  Ndc5 {[%clk 0:02:14]} 18. Rac1 {[%clk 0:01:37]}  b4 {[%clk 0:02:00]} 19. Nc4 {[%clk 0:01:20]}  g5 {[%clk 0:01:55]} 20. Nh5 {[%clk 0:01:19]}  Kf7 {[%clk 0:01:55]} 21. g4 {[%clk 0:01:17]}  Kg6 {[%clk 0:01:43]} 22. Ng3 {[%clk 0:01:10]}  f5 {[%clk 0:01:40]} 23. h3 {[%clk 0:01:09]}  f4 {[%clk 0:01:33]} 24. Nh5 {[%clk 0:01:08]}  Kf7 {[%clk 0:01:21]} 25. Ne5+ {[%clk 0:01:07]}  Kf8 {[%clk 0:01:13]} 26. Nf3 {[%clk 0:00:53]}  h6 {[%clk 0:01:11]} 27. h4 {[%clk 0:00:52]}  Ke7 {[%clk 0:00:56]} 28. hxg5 {[%clk 0:00:51]}  hxg5 {[%clk 0:00:57]} 29. Rxd8 {[%clk 0:00:35]}  Rxd8 {[%clk 0:00:57]} 30. Nxg5 {[%clk 0:00:35]}  Rg8 {[%clk 0:00:56]} 31. Nh3 {[%clk 0:00:34]}  Rxg4+ {[%clk 0:00:57]} 32. Kf3 {[%clk 0:00:33]}  Rg8 {[%clk 0:00:46]} 33. N5xf4 {[%clk 0:00:33]}  e5 {[%clk 0:00:45]} 34. Nd5+ {[%clk 0:00:32]}  Kd6 {[%clk 0:00:32]} 35. Ne3 {[%clk 0:00:31]}  Nc7 {[%clk 0:00:25]} 36. Rd1+ {[%clk 0:00:22]}  Ke6 {[%clk 0:00:24]} 37. Rg1 {[%clk 0:00:18]}  Rh8 {[%clk 0:00:21]} 38. Ng5+ {[%clk 0:00:17]}  Ke7 {[%clk 0:00:21]} 39. Rg3 {[%clk 0:00:15]}  a5 {[%clk 0:00:20]} 40. Kg2 {[%clk 0:00:15]}  N7e6 {[%clk 0:00:19]} 41. Nxe6 {[%clk 0:00:15]}  Nxe6 {[%clk 0:00:20]} 42. Rg5 {[%clk 0:00:12]}  Nf4+ {[%clk 0:00:19]} 43. Kf3 {[%clk 0:00:12]}  Kf6 {[%clk 0:00:19]} 44. Rf5+ {[%clk 0:00:11]}  Ke6 {[%clk 0:00:19]} 45. Ke4 {[%clk 0:00:11]}  Rh4 {[%clk 0:00:19]} 46. Rxe5+ {[%clk 0:00:11]}  Kd6 {[%clk 0:00:19]} 47. Nf5+ {[%clk 0:00:11]}  Kc6 {[%clk 0:00:19]} 48. Nxh4 {[%clk 0:00:11]}  Nxe2 {[%clk 0:00:20]} 49. Rxa5 {[%clk 0:00:11]}  Nc1 {[%clk 0:00:20]} 50. b3 {[%clk 0:00:10]}  Kb6 {[%clk 0:00:20]} 51. Ra4 {[%clk 0:00:10]}  Kb5 {[%clk 0:00:20]} 52. f4 {[%clk 0:00:11]}  Ne2 {[%clk 0:00:20]} 53. f5 {[%clk 0:00:10]}  Nc3+ {[%clk 0:00:21]} 54. Ke5 {[%clk 0:00:10]}  Nxa4 {[%clk 0:00:21]} 55. bxa4+ {[%clk 0:00:10]}  Kxa4 {[%clk 0:00:22]} 56. f6 {[%clk 0:00:10]}  Ka3 {[%clk 0:00:23]} 57. f7 {[%clk 0:00:10]}  Kxa2 {[%clk 0:00:24]} 58. f8=Q {[%clk 0:00:09]}  b3 {[%clk 0:00:25]} 59. Nf3 {[%clk 0:00:08]}  Ka1 {[%clk 0:00:26]} 60. Nd2 {[%clk 0:00:08]}  b2 {[%clk 0:00:26]} 61. Qa8# {[%clk 0:00:08]} 1-0


[Site "https://www.chess.com"]

[Event "Titled Tuesday Blitz August 15 Late 2023"]
[White "Galchenko, Matvey"]
[Black "Kirk, Ezra"]
[WhiteFideId "24175480"]
[BlackFideId "600067"]
[WhiteElo "2865"]
[BlackElo "2584"]
[Result "1-0"]
[Round "5"]
[TimeControl "180+1"]
[Date "2023.08.15"]
[WhiteClock "0:00:19"]
[BlackClock "0:00:00"]
[Board "30"]

1. e4 {[%clk 0:03:00]}  c5 {[%clk 0:02:57]} 2. Nc3 {[%clk 0:03:00]}  Nc6 {[%clk 0:02:54]} 3. Bb5 {[%clk 0:03:00]}  Nd4 {[%clk 0:02:48]} 4. Nf3 {[%clk 0:03:00]}  a6 {[%clk 0:02:40]} 5. Bd3 {[%clk 0:02:57]}  Nc6 {[%clk 0:02:29]} 6. O-O {[%clk 0:02:44]}  e5 {[%clk 0:02:25]} 7. Bc4 {[%clk 0:02:39]}  Be7 {[%clk 0:02:23]} 8. d3 {[%clk 0:02:34]}  Nf6 {[%clk 0:02:23]} 9. Ng5 {[%clk 0:02:34]}  O-O {[%clk 0:02:21]} 10. f4 {[%clk 0:02:33]}  b5 {[%clk 0:02:16]} 11. Bb3 {[%clk 0:02:20]}  d6 {[%clk 0:01:53]} 12. f5 {[%clk 0:02:11]}  Nd4 {[%clk 0:01:47]} 13. Nf3 {[%clk 0:02:07]}  Nxb3 {[%clk 0:01:44]} 14. axb3 {[%clk 0:02:08]}  Bb7 {[%clk 0:01:43]} 15. Qe2 {[%clk 0:02:07]}  Re8 {[%clk 0:01:41]} 16. h3 {[%clk 0:02:06]}  d5 {[%clk 0:01:14]} 17. exd5 {[%clk 0:01:32]}  Nxd5 {[%clk 0:01:14]} 18. Nxd5 {[%clk 0:01:29]}  Qxd5 {[%clk 0:00:56]} 19. Qxe5 {[%clk 0:01:26]}  Qc6 {[%clk 0:00:55]} 20. Qg3 {[%clk 0:01:18]}  Bf6 {[%clk 0:00:52]} 21. Bf4 {[%clk 0:01:10]}  Re2 {[%clk 0:00:49]} 22. Rf2 {[%clk 0:00:55]}  Rae8 {[%clk 0:00:47]} 23. c3 {[%clk 0:00:54]}  Qd5 {[%clk 0:00:45]} 24. Rxe2 {[%clk 0:00:41]}  Rxe2 {[%clk 0:00:45]} 25. Re1 {[%clk 0:00:31]}  Qxd3 {[%clk 0:00:44]} 26. Rxe2 {[%clk 0:00:27]}  Qxe2 {[%clk 0:00:45]} 27. Bg5 {[%clk 0:00:21]}  Qd1+ {[%clk 0:00:00]} 28. Kh2 {[%clk 0:00:19]} 1-0


[Site "https://www.chess.com"]

[Event "Titled Tuesday Blitz August 15 Late 2023"]
[White "Kovalev, Vladislav"]
[Black "Przybylski, Wojciech"]
[WhiteFideId "13504398"]
[BlackFideId "1117599"]
[WhiteElo "2864"]
[BlackElo "2578"]
[Result "1-0"]
[Round "5"]
[TimeControl "180+1"]
[Date "2023.08.15"]
[WhiteClock "0:01:25"]
[BlackClock "0:00:00"]
[Board "31"]

1. e4 {[%clk 0:03:00]}  e5 {[%clk 0:02:58]} 2. Nf3 {[%clk 0:03:01]}  Nc6 {[%clk 0:02:59]} 3. Bb5 {[%clk 0:03:01]}  Nf6 {[%clk 0:02:59]} 4. O-O {[%clk 0:03:01]}  Nxe4 {[%clk 0:02:59]} 5. Re1 {[%clk 0:03:01]}  Nd6 {[%clk 0:02:59]} 6. Nxe5 {[%clk 0:03:02]}  Be7 {[%clk 0:02:58]} 7. Bf1 {[%clk 0:03:02]}  Nf5 {[%clk 0:02:53]} 8. Nf3 {[%clk 0:03:02]}  d5 {[%clk 0:02:51]} 9. d4 {[%clk 0:03:02]}  O-O {[%clk 0:02:51]} 10. c3 {[%clk 0:03:02]}  Re8 {[%clk 0:02:46]} 11. Bd3 {[%clk 0:03:02]}  Bf6 {[%clk 0:02:39]} 12. Rxe8+ {[%clk 0:03:01]}  Qxe8 {[%clk 0:02:39]} 13. Bf4 {[%clk 0:03:02]}  Qe7 {[%clk 0:02:29]} 14. Nbd2 {[%clk 0:03:02]}  Be6 {[%clk 0:02:28]} 15. Qc2 {[%clk 0:03:01]}  g6 {[%clk 0:02:25]} 16. Re1 {[%clk 0:03:02]}  Qd7 {[%clk 0:02:17]} 17. Ng5 {[%clk 0:02:43]}  Ng7 {[%clk 0:02:01]} 18. Nxe6 {[%clk 0:02:28]}  Nxe6 {[%clk 0:02:02]} 19. Bg3 {[%clk 0:02:29]}  Ng7 {[%clk 0:01:39]} 20. Qb3 {[%clk 0:02:15]}  Rb8 {[%clk 0:01:24]} 21. Nf1 {[%clk 0:02:12]}  Be7 {[%clk 0:01:12]} 22. Ne3 {[%clk 0:02:09]}  Ne6 {[%clk 0:00:12]} 23. Nxd5 {[%clk 0:01:58]}  Bd8 {[%clk 0:00:11]} 24. Ne3 {[%clk 0:01:52]}  h5 {[%clk 0:00:07]} 25. h3 {[%clk 0:01:50]}  a6 {[%clk 0:00:04]} 26. Be4 {[%clk 0:01:37]}  Ne7 {[%clk 0:00:03]} 27. Nc4 {[%clk 0:01:34]}  b5 {[%clk 0:00:01]} 28. Ne5 {[%clk 0:01:35]}  Qe8 {[%clk 0:00:02]} 29. Nxg6 {[%clk 0:01:27]}  Ng5 {[%clk 0:00:02]} 30. Nxe7+ {[%clk 0:01:24]}  Qxe7 {[%clk 0:00:00]} 31. Bh7+ {[%clk 0:01:25]} 1-0


[Site "https://www.chess.com"]

[Event "Titled Tuesday Blitz August 15 Late 2023"]
[White "Kochiev, Ivan"]
[Black "Lagarde, Maxime"]
[WhiteFideId "2917890"]
[BlackFideId "662399"]
[WhiteElo "2574"]
[BlackElo "2858"]
[Result "0-1"]
[Round "5"]
[TimeControl "180+1"]
[Date "2023.08.15"]
[WhiteClock "0:00:04"]
[BlackClock "0:01:07"]
[Board "32"]

1. e4 {[%clk 0:02:53]}  Nc6 {[%clk 0:03:00]} 2. Nf3 {[%clk 0:02:53]}  d6 {[%clk 0:02:56]} 3. Bc4 {[%clk 0:02:49]}  Nf6 {[%clk 0:02:57]} 4. d3 {[%clk 0:02:48]}  g6 {[%clk 0:02:57]} 5. O-O {[%clk 0:02:48]}  Bg7 {[%clk 0:02:57]} 6. c3 {[%clk 0:02:49]}  O-O {[%clk 0:02:58]} 7. Re1 {[%clk 0:02:49]}  a6 {[%clk 0:02:56]} 8. Bb3 {[%clk 0:02:49]}  Na5 {[%clk 0:02:53]} 9. Bc2 {[%clk 0:02:49]}  c5 {[%clk 0:02:53]} 10. h3 {[%clk 0:02:48]}  e5 {[%clk 0:02:52]} 11. d4 {[%clk 0:02:47]}  Qc7 {[%clk 0:02:51]} 12. Nbd2 {[%clk 0:02:44]}  b5 {[%clk 0:02:50]} 13. Nf1 {[%clk 0:02:42]}  exd4 {[%clk 0:02:47]} 14. cxd4 {[%clk 0:02:41]}  Bb7 {[%clk 0:02:47]} 15. b3 {[%clk 0:02:29]}  Rfe8 {[%clk 0:02:44]} 16. Ng3 {[%clk 0:02:28]}  cxd4 {[%clk 0:02:40]} 17. Nxd4 {[%clk 0:02:24]}  Rac8 {[%clk 0:02:37]} 18. Bf4 {[%clk 0:02:15]}  Nd7 {[%clk 0:02:32]} 19. Rc1 {[%clk 0:02:12]}  Ne5 {[%clk 0:02:30]} 20. h4 {[%clk 0:02:06]}  Nac6 {[%clk 0:02:28]} 21. Bb1 {[%clk 0:01:56]}  Qb6 {[%clk 0:02:22]} 22. Nde2 {[%clk 0:01:35]}  Ng4 {[%clk 0:02:16]} 23. Rf1 {[%clk 0:01:28]}  Nce5 {[%clk 0:02:16]} 24. Rxc8 {[%clk 0:01:13]}  Rxc8 {[%clk 0:02:17]} 25. Nd4 {[%clk 0:01:05]}  h5 {[%clk 0:02:05]} 26. Nf3 {[%clk 0:00:58]}  Rc3 {[%clk 0:01:55]} 27. Ng5 {[%clk 0:00:21]}  b4 {[%clk 0:01:26]} 28. Qd2 {[%clk 0:00:20]}  a5 {[%clk 0:01:24]} 29. Kh1 {[%clk 0:00:16]}  Ba6 {[%clk 0:01:23]} 30. Bxe5 {[%clk 0:00:13]}  Bxe5 {[%clk 0:01:20]} 31. Qd5 {[%clk 0:00:10]}  Nxf2+ {[%clk 0:01:10]} 32. Rxf2 {[%clk 0:00:07]}  Qxf2 {[%clk 0:01:11]} 33. Qa8+ {[%clk 0:00:03]}  Kg7 {[%clk 0:01:07]} 34. Qxa6 {[%clk 0:00:04]} 0-1


[Site "https://www.chess.com"]

[Event "Titled Tuesday Blitz August 15 Late 2023"]
[White "Remizov, Yaroslav"]
[Black "Vovk, Orest"]
[WhiteFideId "34134015"]
[BlackFideId "14113490"]
[WhiteElo "2844"]
[BlackElo "2573"]
[Result "1-0"]
[Round "5"]
[TimeControl "180+1"]
[Date "2023.08.15"]
[WhiteClock "0:02:13"]
[BlackClock "0:00:03"]
[Board "33"]

1. e4 {[%clk 0:02:59]}  g6 {[%clk 0:02:55]} 2. d4 {[%clk 0:02:58]}  Nf6 {[%clk 0:02:55]} 3. e5 {[%clk 0:02:58]}  Nh5 {[%clk 0:02:53]} 4. Be2 {[%clk 0:02:58]}  d6 {[%clk 0:02:51]} 5. Bxh5 {[%clk 0:02:58]}  gxh5 {[%clk 0:02:49]} 6. Qxh5 {[%clk 0:02:59]}  dxe5 {[%clk 0:02:40]} 7. Qxe5 {[%clk 0:03:00]}  Rg8 {[%clk 0:02:39]} 8. Ne2 {[%clk 0:03:00]}  Nc6 {[%clk 0:02:34]} 9. Qe4 {[%clk 0:02:57]}  Rg4 {[%clk 0:02:31]} 10. Bf4 {[%clk 0:02:52]}  f5 {[%clk 0:02:05]} 11. Qe3 {[%clk 0:02:48]}  Rxg2 {[%clk 0:01:56]} 12. Bg3 {[%clk 0:02:39]}  e5 {[%clk 0:00:36]} 13. Qf3 {[%clk 0:02:35]}  Rxg3 {[%clk 0:00:34]} 14. hxg3 {[%clk 0:02:34]}  Be6 {[%clk 0:00:26]} 15. Rxh7 {[%clk 0:02:31]}  Qf6 {[%clk 0:00:17]} 16. d5 {[%clk 0:02:29]}  O-O-O {[%clk 0:00:09]} 17. dxc6 {[%clk 0:02:16]}  e4 {[%clk 0:00:03]} 18. Qc3 {[%clk 0:02:14]}  Qg6 {[%clk 0:00:03]} 19. cxb7+ {[%clk 0:02:13]}  Kb8 {[%clk 0:00:03]} 20. Qxc7# {[%clk 0:02:13]} 1-0


[Site "https://www.chess.com"]

[Event "Titled Tuesday Blitz August 15 Late 2023"]
[White "Leenhouts, Koen"]
[Black "Salinas Herrera, Pablo"]
[WhiteFideId "1008439"]
[BlackFideId "3407128"]
[WhiteElo "2555"]
[BlackElo "2829"]
[Result "1-0"]
[Round "5"]
[TimeControl "180+1"]
[Date "2023.08.15"]
[WhiteClock "0:00:39"]
[BlackClock "0:00:34"]
[Board "34"]

1. d4 {[%clk 0:03:00]}  e6 {[%clk 0:03:00]} 2. c4 {[%clk 0:02:59]}  b6 {[%clk 0:03:00]} 3. a3 {[%clk 0:02:51]}  Bb7 {[%clk 0:03:00]} 4. d5 {[%clk 0:02:50]}  g6 {[%clk 0:02:59]} 5. g3 {[%clk 0:02:45]}  Bg7 {[%clk 0:02:58]} 6. Bg2 {[%clk 0:02:44]}  Ne7 {[%clk 0:02:56]} 7. e4 {[%clk 0:02:34]}  O-O {[%clk 0:02:54]} 8. Ne2 {[%clk 0:02:31]}  exd5 {[%clk 0:02:54]} 9. exd5 {[%clk 0:02:30]}  c6 {[%clk 0:02:52]} 10. O-O {[%clk 0:02:24]}  cxd5 {[%clk 0:02:52]} 11. Nbc3 {[%clk 0:02:22]}  Na6 {[%clk 0:02:43]} 12. cxd5 {[%clk 0:02:18]}  Nc5 {[%clk 0:02:41]} 13. b4 {[%clk 0:02:16]}  Na6 {[%clk 0:01:59]} 14. d6 {[%clk 0:02:16]}  Nc6 {[%clk 0:01:58]} 15. b5 {[%clk 0:02:15]}  Nc5 {[%clk 0:01:55]} 16. bxc6 {[%clk 0:02:13]}  dxc6 {[%clk 0:01:55]} 17. Be3 {[%clk 0:02:09]}  Ne6 {[%clk 0:01:52]} 18. Qd2 {[%clk 0:01:57]}  Ba6 {[%clk 0:01:52]} 19. Rac1 {[%clk 0:01:46]}  Rc8 {[%clk 0:01:46]} 20. Rfd1 {[%clk 0:01:45]}  Qd7 {[%clk 0:01:45]} 21. Nf4 {[%clk 0:01:42]}  Ng5 {[%clk 0:01:41]} 22. h4 {[%clk 0:01:38]}  Ne6 {[%clk 0:01:40]} 23. Nxe6 {[%clk 0:01:31]}  Qxe6 {[%clk 0:01:40]} 24. d7 {[%clk 0:01:28]}  Rcd8 {[%clk 0:01:40]} 25. Ne4 {[%clk 0:01:26]}  c5 {[%clk 0:01:37]} 26. Ng5 {[%clk 0:01:17]}  Qb3 {[%clk 0:01:37]} 27. Bd5 {[%clk 0:01:12]}  Qxa3 {[%clk 0:01:34]} 28. Nxf7 {[%clk 0:01:08]}  Rxf7 {[%clk 0:01:26]} 29. Bxf7+ {[%clk 0:01:09]}  Kxf7 {[%clk 0:01:25]} 30. Qd5+ {[%clk 0:01:08]}  Kf8 {[%clk 0:01:24]} 31. Qd6+ {[%clk 0:01:01]}  Kf7 {[%clk 0:01:22]} 32. Qd5+ {[%clk 0:01:00]}  Kf8 {[%clk 0:01:21]} 33. Bg5 {[%clk 0:00:58]}  Bd4 {[%clk 0:01:17]} 34. Rxd4 {[%clk 0:00:52]}  cxd4 {[%clk 0:01:17]} 35. Bxd8 {[%clk 0:00:48]}  Qxc1+ {[%clk 0:01:17]} 36. Kh2 {[%clk 0:00:43]}  Qd2 {[%clk 0:00:41]} 37. Be7+ {[%clk 0:00:39]}  Kg7 {[%clk 0:00:34]} 38. Bf6+ {[%clk 0:00:39]} 1-0


[Site "https://www.chess.com"]

[Event "Titled Tuesday Blitz August 15 Late 2023"]
[White "Mickiewicz, Piotr"]
[Black "Bazeev, German"]
[WhiteFideId "1114891"]
[BlackFideId "24119350"]
[WhiteElo "2524"]
[BlackElo "2776"]
[Result "0-1"]
[Round "5"]
[TimeControl "180+1"]
[Date "2023.08.15"]
[WhiteClock "0:00:03"]
[BlackClock "0:00:19"]
[Board "39"]

1. d4 {[%clk 0:03:00]}  Nf6 {[%clk 0:02:59]} 2. c4 {[%clk 0:03:00]}  e6 {[%clk 0:03:00]} 3. g3 {[%clk 0:03:00]}  d5 {[%clk 0:02:58]} 4. Bg2 {[%clk 0:02:57]}  Bb4+ {[%clk 0:02:57]} 5. Nd2 {[%clk 0:02:53]}  O-O {[%clk 0:02:52]} 6. Qc2 {[%clk 0:02:50]}  Bd7 {[%clk 0:02:44]} 7. Nf3 {[%clk 0:02:48]}  dxc4 {[%clk 0:02:42]} 8. O-O {[%clk 0:02:34]}  Bxd2 {[%clk 0:02:41]} 9. Bxd2 {[%clk 0:02:25]}  Bc6 {[%clk 0:02:41]} 10. Qxc4 {[%clk 0:02:20]}  Nbd7 {[%clk 0:02:40]} 11. Rfd1 {[%clk 0:01:56]}  h6 {[%clk 0:02:22]} 12. Rac1 {[%clk 0:01:52]}  a5 {[%clk 0:02:14]} 13. Bf4 {[%clk 0:01:48]}  a4 {[%clk 0:02:10]} 14. Ne5 {[%clk 0:01:43]}  Bxg2 {[%clk 0:02:09]} 15. Kxg2 {[%clk 0:01:44]}  c6 {[%clk 0:02:08]} 16. Qb4 {[%clk 0:01:12]}  Qb6 {[%clk 0:02:00]} 17. Qxb6 {[%clk 0:01:03]}  Nxb6 {[%clk 0:02:01]} 18. Rc2 {[%clk 0:00:58]}  Rfd8 {[%clk 0:01:57]} 19. f3 {[%clk 0:00:55]}  Nbd5 {[%clk 0:01:52]} 20. Bd2 {[%clk 0:00:53]}  Ne7 {[%clk 0:01:50]} 21. Be1 {[%clk 0:00:46]}  Nfd5 {[%clk 0:01:48]} 22. Bd2 {[%clk 0:00:31]}  Nc7 {[%clk 0:01:47]} 23. Be1 {[%clk 0:00:28]}  Nb5 {[%clk 0:01:47]} 24. e3 {[%clk 0:00:26]}  Nd5 {[%clk 0:01:34]} 25. Kf2 {[%clk 0:00:25]}  Nb6 {[%clk 0:01:28]} 26. Ke2 {[%clk 0:00:23]}  f6 {[%clk 0:01:18]} 27. Nd3 {[%clk 0:00:22]}  Nd7 {[%clk 0:01:19]} 28. Bf2 {[%clk 0:00:19]}  Kf7 {[%clk 0:01:19]} 29. e4 {[%clk 0:00:18]}  g5 {[%clk 0:01:10]} 30. Be3 {[%clk 0:00:11]}  f5 {[%clk 0:01:07]} 31. d5 {[%clk 0:00:08]}  exd5 {[%clk 0:01:00]} 32. exd5 {[%clk 0:00:08]}  cxd5 {[%clk 0:01:01]} 33. Nc5 {[%clk 0:00:09]}  Rac8 {[%clk 0:00:32]} 34. Rxd5 {[%clk 0:00:05]}  b6 {[%clk 0:00:32]} 35. Rxf5+ {[%clk 0:00:03]}  Kg6 {[%clk 0:00:30]} 36. Rd5 {[%clk 0:00:03]}  Nxc5 {[%clk 0:00:29]} 37. Rxd8 {[%clk 0:00:02]}  Rxd8 {[%clk 0:00:29]} 38. Bxc5 {[%clk 0:00:02]}  bxc5 {[%clk 0:00:30]} 39. Rxc5 {[%clk 0:00:03]}  Nd4+ {[%clk 0:00:28]} 40. Kf2 {[%clk 0:00:03]}  Re8 {[%clk 0:00:26]} 41. Ra5 {[%clk 0:00:02]}  Re2+ {[%clk 0:00:23]} 42. Kf1 {[%clk 0:00:02]}  Rxb2 {[%clk 0:00:24]} 43. Rxa4 {[%clk 0:00:02]}  Nxf3 {[%clk 0:00:24]} 44. h4 {[%clk 0:00:02]}  Kf5 {[%clk 0:00:19]} 45. hxg5 {[%clk 0:00:01]}  hxg5 {[%clk 0:00:20]} 46. g4+ {[%clk 0:00:02]}  Ke5 {[%clk 0:00:19]} 47. a3 {[%clk 0:00:03]}  Nd2+ {[%clk 0:00:20]} 48. Ke1 {[%clk 0:00:02]}  Ne4 {[%clk 0:00:20]} 49. Ra5+ {[%clk 0:00:02]}  Kf4 {[%clk 0:00:20]} 50. a4 {[%clk 0:00:02]}  Ke3 {[%clk 0:00:21]} 51. Ra8 {[%clk 0:00:03]}  Rb1# {[%clk 0:00:19]} 0-1


[Site "https://www.chess.com"]

[Event "Titled Tuesday Blitz August 15 Late 2023"]
[White "Fernandez Guillen, Ernesto J."]
[Black "Postlmayer, Jakob"]
[WhiteFideId "3512428"]
[BlackFideId "1643622"]
[WhiteElo "2740"]
[BlackElo "2550"]
[Result "1-0"]
[Round "5"]
[TimeControl "180+1"]
[Date "2023.08.15"]
[WhiteClock "0:00:57"]
[BlackClock "0:00:44"]
[Board "47"]

1. e4 {[%clk 0:03:00]}  c6 {[%clk 0:02:59]} 2. d4 {[%clk 0:02:57]}  d5 {[%clk 0:03:00]} 3. e5 {[%clk 0:02:57]}  Bf5 {[%clk 0:02:59]} 4. c3 {[%clk 0:02:55]}  e6 {[%clk 0:02:59]} 5. Bd3 {[%clk 0:02:55]}  Bxd3 {[%clk 0:02:58]} 6. Qxd3 {[%clk 0:02:56]}  Ne7 {[%clk 0:02:51]} 7. Ne2 {[%clk 0:02:56]}  Nf5 {[%clk 0:02:49]} 8. O-O {[%clk 0:02:57]}  c5 {[%clk 0:02:45]} 9. Nd2 {[%clk 0:02:58]}  Nc6 {[%clk 0:02:44]} 10. Nf3 {[%clk 0:02:57]}  cxd4 {[%clk 0:02:43]} 11. cxd4 {[%clk 0:02:57]}  Be7 {[%clk 0:02:42]} 12. g4 {[%clk 0:02:56]}  Nh4 {[%clk 0:02:41]} 13. Nxh4 {[%clk 0:02:57]}  Bxh4 {[%clk 0:02:41]} 14. f4 {[%clk 0:02:58]}  Be7 {[%clk 0:02:38]} 15. f5 {[%clk 0:02:57]}  Qb6 {[%clk 0:02:31]} 16. Be3 {[%clk 0:02:52]}  O-O-O {[%clk 0:02:26]} 17. fxe6 {[%clk 0:02:47]}  fxe6 {[%clk 0:02:25]} 18. Rf7 {[%clk 0:02:47]}  g6 {[%clk 0:02:00]} 19. Rc1 {[%clk 0:02:45]}  Rde8 {[%clk 0:01:52]} 20. Bh6 {[%clk 0:02:39]}  Kb8 {[%clk 0:01:50]} 21. Kh1 {[%clk 0:02:35]}  Nd8 {[%clk 0:01:37]} 22. Rf3 {[%clk 0:02:24]}  Bf8 {[%clk 0:01:36]} 23. Bg5 {[%clk 0:02:18]}  Be7 {[%clk 0:01:35]} 24. Bf6 {[%clk 0:02:11]}  Bxf6 {[%clk 0:01:28]} 25. Rxf6 {[%clk 0:02:07]}  Re7 {[%clk 0:01:24]} 26. Qa3 {[%clk 0:01:39]}  Rhe8 {[%clk 0:01:19]} 27. Rc5 {[%clk 0:01:29]}  a6 {[%clk 0:01:17]} 28. Qc3 {[%clk 0:01:22]}  Rc7 {[%clk 0:01:16]} 29. b4 {[%clk 0:01:15]}  Rxc5 {[%clk 0:01:11]} 30. Qxc5 {[%clk 0:01:16]}  Qxc5 {[%clk 0:01:10]} 31. bxc5 {[%clk 0:01:16]}  Kc7 {[%clk 0:01:09]} 32. Kg2 {[%clk 0:01:14]}  Kd7 {[%clk 0:01:04]} 33. g5 {[%clk 0:01:03]}  Ke7 {[%clk 0:01:02]} 34. h4 {[%clk 0:01:02]}  Nc6 {[%clk 0:00:57]} 35. Kf3 {[%clk 0:00:59]}  b6 {[%clk 0:00:51]} 36. cxb6 {[%clk 0:00:57]}  Rb8 {[%clk 0:00:50]} 37. Ke3 {[%clk 0:00:57]}  Rxb6 {[%clk 0:00:49]} 38. Nf4 {[%clk 0:00:57]}  Nd8 {[%clk 0:00:44]} 39. Nxd5+ {[%clk 0:00:57]} 1-0


[Site "https://www.chess.com"]